[Event "Klatov Bazar Besiny Cup 2018"]
[Site "Klatovy"]
[Date "2018.07.05"]
[Round "6"]
[White "Bures, Jaroslav"]
[Black "Kotal, Vaclav"]
[Result "1-0"]
[ECO "B10"]
[WhiteElo "2406"]
[BlackElo "2101"]
[Annotator "ChessBase"]
[PlyCount "119"]
[EventDate "2018.07.01"]
[EventType "swiss"]
[EventCountry "CZE"]
[SourceTitle "playchess.com"]
[Source "ChessBase"]
[SourceQuality "1"]
[TimeControl "40/7200:0"]

1. c4 {[%emt 0:00:00]} c6 {[%emt 0:00:44]} 2. e4 {[%emt 0:00:00]} d5 {[%emt 0:02:23]} 3. exd5 {[%emt 0:00:00]} cxd5 {[%emt 0:00:00]} 4. cxd5 {[%emt 0:00:00]} Nf6 {[%emt 0:00:04]} 5. Nc3 {[%emt 0:00:00]} Nxd5 {[%emt 0:00:35]} 6. Nf3 {[%emt 0:00:00]} Nc6 {[%emt 0:02:33]} 7. Bb5 {[%emt 0:00:00]} e6 {[%emt 0:07:16]} 8. O-O {[%emt 0:02:05]} Be7 {[%emt 0:00:26]} 9. d4 {[%emt 0:10:43]} O-O {[%emt 0:00:35]} 10. Re1 {[%emt 0:00:00]} Ncb4 {[%emt 0:11:27]} 11. Ne5 {[%emt 0:17:32]} Qc7 {[%emt 0:08:58]} 12. Qb3 {[%emt 0:07:28]} Rd8 {[%emt 0:16:13]} 13. Bc4 {[%emt 0:15:43]} Nxc3 {[%emt 0:14:11]} 14. bxc3 {[%emt 0:01:18]} b5 {[%emt 0:00:31]} 15. Bxb5 {[%emt 0:04:58]} Rb8 {[%emt 0:01:46]} 16. Qc4 {[%emt 0:11:39]} Qb6 {[%emt 0:12:10]} 17. Ba4 {[%emt 0:14:35]} Ba6 {[%emt 0:06:03]} 18. Qb3 {[%emt 0:00:00]} Nd3 {[%emt 0:00:27]} 19. Qxb6 {[%emt 0:02:49]} Rxb6 {[%emt 0:00:00]} 20. Nxd3 {[%emt 0:00:00]} Bxd3 {[%emt 0:00:00]} 21. Bb3 {[%emt 0:02:20]} Kf8 {[%emt 0:01:00]} 22. Re3 {[%emt 0:02:22]} Bg6 {[%emt 0:00:39]} 23. Re5 {[%emt 0:01:59]} Rc8 {[%emt 0:02:27]} 24. Ra5 {[%emt 0:00:00]} Rxc3 {[%emt 0:06:56]} 25. Rxa7 {[%emt 0:00:00]} Rc8 {[%emt 0:00:39]} 26. Be3 {[%emt 0:00:59]} Rbc6 {[%emt 0:04:49]} 27. d5 {[%emt 0:02:24]} exd5 {[%emt 0:00:17]} 28. Bxd5 {[%emt 0:00:00]} Rc2 {[%emt 0:00:24]} 29. a4 Bf6 {[%emt 0:00:00]} 30. Rd1 {[%emt 0:05:41]} Bd4 {[%emt 0:10:41]} 31. Ra8 {[%emt 0:00:00]} Rxa8 {[%emt 0:00:00]} 32. Bxa8 {[%emt 0:00:00]} Bxe3 {[%emt 0:00:00]} 33. fxe3 {[%emt 0:00:00]} Ra2 {[%emt 0:00:00]} 34. Rd4 {[%emt 0:00:00]} Bc2 {[%emt 0:00:00]} 35. Bc6 {[%emt 0:00:00]} Bb3 {[%emt 0:00:00]} 36. h4 {[%emt 0:00:00]} Ke7 {[%emt 0:01:02]} 37. Kh2 {[%emt 0:00:00]} Ke6 {[%emt 0:00:50]} 38. Kg3 {[%emt 0:01:31]} Ke5 {[%emt 0:00:42]} 39. Rb4 {[%emt 0:01:30]} Kd6 {[%emt 0:00:46]} 40. Rxb3 {[%emt 0:01:49]} Kxc6 {[%emt 0:00:00]} 41. Rb4 {[%emt 1:59:35]} Kd5 {[%emt 2:00:27]} 42. Rb7 {[%emt 0:03:35]} Ke6 {[%emt 0:00:00]} 43. Ra7 {[%emt 0:00:00]} h6 {[%emt 0:00:00]} 44. Kf3 {[%emt 0:00:00]} g5 {[%emt 0:00:08]} 45. Ra6+ {[%emt 0:00:00]} Kf5 {[%emt 0:00:40]} 46. g4+ {[%emt 0:00:39]} Ke5 {[%emt 0:00:00]} 47. h5 {[%emt 0:00:02]} f6 {[%emt 0:00:00]} 48. Ra5+ {[%emt 0:00:04]} Ke6 {[%emt 0:00:00]} 49. Ke4 {[%emt 0:00:02]} Rg2 {[%emt 0:00:00]} 50. Ra6+ {[%emt 0:00:00]} Kf7 {[%emt 0:00:00]} 51. Kf3 {[%emt 0:00:00]} Ra2 {[%emt 0:00:00]} 52. a5 {[%emt 0:00:00]} Ra4 {[%emt 0:00:00]} 53. Ra8 {[%emt 0:00:00]} Kg7 {[%emt 0:00:00]} 54. a6 {[%emt 0:00:00]} Kh7 {[%emt 0:00:00]} 55. e4 {[%emt 0:00:00]} Ra3+ {[%emt 0:00:00]} 56. Ke2 {[%emt 0:00:00]} Kg7 {[%emt 0:00:00]} 57. Ra7+ {[%emt 0:00:00]} Kg8 {[%emt 0:00:00]} 58. Kd2 {[%emt 0:00:00]} Kh8 {[%emt 0:00:00]} 59. Kc2 {[%emt 0:00:00]} Kg8 {[%emt 0:00:00]} 60. Kb2 {[%emt 0:00:00]} 1-0

[Event "Klatov Bazar Besiny Cup 2018"]
[Site "Klatovy"]
[Date "2018.07.05"]
[Round "6"]
[White "Straka, Vojtech"]
[Black "Pulpan, Jakub"]
[Result "1/2-1/2"]
[ECO "E32"]
[WhiteElo "2379"]
[BlackElo "2386"]
[Annotator "NA"]
[PlyCount "53"]
[EventDate "2018.07.01"]
[EventType "swiss"]
[EventCountry "CZE"]
[SourceTitle "playchess.com"]
[Source "ChessBase"]
[SourceQuality "1"]
[TimeControl "40/7200:0"]

1. d4 {[%emt 0:01:40]} Nf6 {[%emt 0:00:00]} 2. c4 {[%emt 0:00:00]} e6 {[%emt 0:00:00]} 3. Nc3 {[%emt 0:00:00]} Bb4 {[%emt 0:00:00]} 4. Qc2 {[%emt 0:00:00]} O-O {[%emt 0:00:00]} 5. a3 {[%emt 0:00:00]} Bxc3+ {[%emt 0:00:00]} 6. Qxc3 {[%emt 0:00:00]} d5 {[%emt 0:00:32]} 7. Bg5 {[%emt 0:01:13]} dxc4 {[%emt 0:00:00]} 8. Qxc4 {[%emt 0:00:00]} b6 {[%emt 0:00:40]} 9. Rd1 {[%emt 0:00:00]} Ba6 {[%emt 0:00:47]} 10. Qa4 {[%emt 0:00:00]} h6 {[%emt 0:04:15]} 11. Bh4 {[%emt 0:00:19]} Qe7 {[%emt 0:00:06]} 12. Nf3 {[%emt 0:00:00]} Rd8 {[%emt 0:00:51]} 13. Bxf6 {[%emt 0:00:18]} Qxf6 {[%emt 0:01:19]} 14. g3 {[%emt 0:00:00]} Bb7 {[%emt 0:04:03]} 15. Bg2 {[%emt 0:00:00]} Nd7 {[%emt 0:02:29]} 16. O-O {[%emt 0:08:36]} c5 {[%emt 0:03:02]} 17. Ne5 {[%emt 0:09:43]} Bxg2 {[%emt 0:13:30]} 18. Nxd7 {[%emt 0:00:37]} Qe7 {[%emt 0:00:11]} 19. Kxg2 {[%emt 0:00:00]} Rxd7 {[%emt 0:00:00]} 20. dxc5 {[%emt 0:00:00]} Rxd1 {[%emt 0:00:00]} 21. Rxd1 {[%emt 0:00:00]} Qxc5 {[%emt 0:00:00]} 22. Qe4 {[%emt 0:04:38]} Rc8 {[%emt 0:00:51]} 23. Rd7 {[%emt 0:00:56]} a5 {[%emt 0:05:20]} 24. Qf3 {[%emt 0:07:55]} Rf8 {[%emt 0:12:54]} 25. a4 {[%emt 0:06:33]} b5 {[%emt 0:03:49]} 26. axb5 {[%emt 0:00:27]} Qxb5 {[%emt 0:00:40]} 27. Rb7 {[%emt 0:00:00]} 1/2-1/2

[Event "Klatov Bazar Besiny Cup 2018"]
[Site "Klatovy"]
[Date "2018.07.05"]
[Round "6"]
[White "Hausner, Ivan"]
[Black "Mejzlik, Ondrej"]
[Result "1/2-1/2"]
[ECO "A27"]
[WhiteElo "2321"]
[BlackElo "2287"]
[Annotator "NA"]
[PlyCount "68"]
[EventDate "2018.07.01"]
[EventType "swiss"]
[EventCountry "CZE"]
[SourceTitle "playchess.com"]
[Source "ChessBase"]
[SourceQuality "1"]
[TimeControl "40/7200:0"]

1. c4 {[%emt 0:00:00]} e5 {[%emt 0:00:00]} 2. Nc3 {[%emt 0:00:00]} Nc6 {[%emt 0:00:00]} 3. Nf3 {[%emt 0:00:00]} g6 {[%emt 0:01:13]} 4. g3 {[%emt 0:00:00]} Bg7 {[%emt 0:00:00]} 5. Bg2 {[%emt 0:00:00]} d6 {[%emt 0:00:00]} 6. Rb1 {[%emt 0:00:00]} f5 {[%emt 0:00:50]} 7. d3 {[%emt 0:00:00]} Nf6 {[%emt 0:00:19]} 8. Bg5 {[%emt 0:00:00]} h6 {[%emt 0:00:44]} 9. Bxf6 {[%emt 0:00:00]} Bxf6 {[%emt 0:00:00]} 10. Nd2 {[%emt 0:00:00]} O-O {[%emt 0:00:00]} 11. Nd5 {[%emt 0:00:00]} Bg7 {[%emt 0:00:51]} 12. b4 {[%emt 0:00:00]} Nd4 {[%emt 0:02:58]} 13. e3 {[%emt 0:00:00]} Ne6 {[%emt 0:00:29]} 14. b5 {[%emt 0:00:00]} f4 {[%emt 0:12:19]} 15. Ne4 {[%emt 0:01:52]} fxe3 {[%emt 0:07:19]} 16. fxe3 {[%emt 0:00:00]} a6 {[%emt 0:03:05]} 17. b6 {[%emt 0:01:04]} c6 {[%emt 0:00:34]} 18. Ndc3 {[%emt 0:00:00]} Kh8 {[%emt 0:04:22]} 19. Nf2 {[%emt 0:04:48]} Nc5 {[%emt 0:04:18]} 20. O-O {[%emt 0:00:55]} Bf5 {[%emt 0:00:43]} 21. Nfe4 {[%emt 0:03:21]} Nxe4 {[%emt 0:05:20]} 22. Bxe4 {[%emt 0:00:18]} Qg5 {[%emt 0:00:43]} 23. Qd2 {[%emt 0:03:28]} Bd7 {[%emt 0:01:56]} 24. Bg2 {[%emt 0:02:00]} Qe7 {[%emt 0:10:30]} 25. a4 {[%emt 0:04:03]} Rxf1+ {[%emt 0:00:33]} 26. Rxf1 {[%emt 0:00:00]} a5 {[%emt 0:01:19]} 27. Be4 {[%emt 0:00:36]} Be8 {[%emt 0:00:09]} 28. Qe2 {[%emt 0:05:12]} Qe6 {[%emt 0:02:40]} 29. Bg2 {[%emt 0:00:40]} Ra6 {[%emt 0:00:38]} 30. Rb1 {[%emt 0:00:00]} Bf6 {[%emt 0:03:34]} 31. Ne4 {[%emt 0:06:07]} Be7 {[%emt 0:07:33]} 32. Qc2 {[%emt 0:05:27]} Ra8 {[%emt 0:28:52]} 33. Nf2 {[%emt 0:05:00]} Bg5 {[%emt 0:01:20]} 34. Bh3 {[%emt 0:01:00]} Qe7 {[%emt 0:00:00]} 1/2-1/2

[Event "Klatov Bazar Besiny Cup 2018"]
[Site "Klatovy"]
[Date "2018.07.05"]
[Round "6"]
[White "Vyprachticky, David"]
[Black "Krzyzanowski, Marcin"]
[Result "0-1"]
[ECO "A53"]
[WhiteElo "2301"]
[BlackElo "2473"]
[Annotator "ChessBase"]
[PlyCount "108"]
[EventDate "2018.07.01"]
[EventType "swiss"]
[EventCountry "CZE"]
[SourceTitle "playchess.com"]
[Source "ChessBase"]
[SourceQuality "1"]
[TimeControl "40/7200:0"]

1. d4 {[%emt 0:04:57]} Nf6 {[%emt 0:00:00]} 2. c4 {[%emt 0:00:00]} d6 {[%emt 0:00:00]} 3. Nf3 {[%emt 0:00:22]} g6 {[%emt 0:00:00]} 4. Nc3 {[%emt 0:00:00]} Bf5 {[%emt 0:00:00]} 5. h3 {[%emt 0:11:41]} h5 {[%emt 0:00:26]} 6. Bf4 {[%emt 0:01:15]} Bg7 {[%emt 0:01:23]} 7. e3 {[%emt 0:00:05]} Ne4 {[%emt 0:01:12]} 8. Nxe4 {[%emt 0:05:37]} Bxe4 {[%emt 0:00:00]} 9. Bd3 {[%emt 0:00:00]} Bxd3 {[%emt 0:00:22]} 10. Qxd3 {[%emt 0:00:26]} Nd7 {[%emt 0:00:24]} 11. O-O {[%emt 0:00:36]} O-O {[%emt 0:04:31]} 12. Rac1 {[%emt 0:08:59]} e5 {[%emt 0:04:30]} 13. dxe5 {[%emt 0:02:54]} dxe5 {[%emt 0:06:45]} 14. Bg5 {[%emt 0:05:11]} Qe8 {[%emt 0:02:18]} 15. Rfd1 {[%emt 0:04:50]} Nc5 {[%emt 0:06:11]} 16. Qd5 {[%emt 0:08:07]} Ne6 {[%emt 0:03:14]} 17. Bh4 {[%emt 0:02:31]} c6 {[%emt 0:00:24]} 18. Qd7 {[%emt 0:01:13]} e4 {[%emt 0:07:20]} 19. Ng5 {[%emt 0:01:50]} Qxd7 {[%emt 0:00:16]} 20. Rxd7 {[%emt 0:00:00]} Nc5 {[%emt 0:00:00]} 21. Rd6 {[%emt 0:14:54]} Be5 {[%emt 0:13:45]} 22. Bg3 {[%emt 0:00:20]} Bxd6 {[%emt 0:01:35]} 23. Bxd6 {[%emt 0:00:00]} Nd3 {[%emt 0:01:31]} 24. Rc3 {[%emt 0:00:00]} Rfe8 {[%emt 0:01:57]} 25. Nxe4 {[%emt 0:01:58]} Rxe4 {[%emt 0:00:50]} 26. Rxd3 {[%emt 0:00:00]} Rxc4 {[%emt 0:00:35]} 27. Be5 {[%emt 0:00:00]} Rc5 {[%emt 0:00:31]} 28. Bc3 {[%emt 0:00:00]} Rd5 {[%emt 0:02:10]} 29. Rxd5 {[%emt 0:01:21]} cxd5 {[%emt 0:00:00]} 30. Kf1 {[%emt 0:00:09]} Kf8 {[%emt 0:00:00]} 31. Ke2 {[%emt 0:00:11]} Ke7 {[%emt 0:00:00]} 32. Kd3 {[%emt 0:04:37]} Ke6 {[%emt 0:00:00]} 33. Bd4 {[%emt 0:01:06]} Rc8 {[%emt 0:00:00]} 34. Bc3 {[%emt 0:00:00]} b6 {[%emt 0:00:00]} 35. Bd2 {[%emt 0:00:00]} g5 {[%emt 0:00:00]} 36. Bc3 {[%emt 0:00:00]} Rc4 {[%emt 0:01:19]} 37. Bd2 {[%emt 0:00:50]} f6 {[%emt 0:00:30]} 38. Bc3 {[%emt 0:00:00]} b5 {[%emt 0:03:25]} 39. a3 {[%emt 0:00:08]} a6 {[%emt 0:00:30]} 40. Bd2 {[%emt 0:00:00]} f5 {[%emt 0:01:53]} 41. b3 {[%emt 2:03:57]} Rc8 {[%emt 2:10:36]} 42. Bc3 {[%emt 0:00:37]} Rg8 {[%emt 0:02:53]} 43. Be1 {[%emt 0:00:44]} f4 {[%emt 0:02:39]} 44. Bd2 {[%emt 0:01:43]} Kf5 {[%emt 0:00:26]} 45. Kd4 {[%emt 0:00:24]} Rc8 {[%emt 0:00:45]} 46. Kd3 {[%emt 0:00:00]} Rc6 {[%emt 0:00:40]} 47. exf4 {[%emt 0:01:18]} gxf4 {[%emt 0:00:00]} 48. g3 {[%emt 0:00:00]} fxg3 {[%emt 0:01:17]} 49. fxg3 {[%emt 0:00:00]} Rg6 {[%emt 0:00:00]} 50. Be1 {[%emt 0:00:00]} Ke6 {[%emt 0:00:00]} 51. Bf2 {[%emt 0:01:09]} Rf6 {[%emt 0:00:09]} 52. Ke2 {[%emt 0:00:37]} Ke5 {[%emt 0:00:00]} 53. Be3 {[%emt 0:01:19]} Ke4 {[%emt 0:00:00]} 54. g4 {[%emt 0:00:00]} Rf3 {[%emt 0:00:00]} 0-1

[Event "Klatov Bazar Besiny Cup 2018"]
[Site "Klatovy"]
[Date "2018.07.05"]
[Round "6"]
[White "Slovak, Kilian"]
[Black "Furman, Boris"]
[Result "1-0"]
[ECO "B69"]
[WhiteElo "2285"]
[BlackElo "2203"]
[Annotator "NA"]
[PlyCount "39"]
[EventDate "2018.07.01"]
[EventType "swiss"]
[EventCountry "CZE"]
[SourceTitle "playchess.com"]
[Source "ChessBase"]
[SourceQuality "1"]
[TimeControl "40/7200:0"]

1. e4 {[%emt 0:00:00]} c5 {[%emt 0:00:00]} 2. Nf3 {[%emt 0:00:00]} Nc6 {[%emt 0:00:00]} 3. d4 {[%emt 0:00:00]} cxd4 {[%emt 0:00:00]} 4. Nxd4 {[%emt 0:00:00]} Nf6 {[%emt 0:00:00]} 5. Nc3 {[%emt 0:00:00]} d6 {[%emt 0:00:00]} 6. Bg5 {[%emt 0:00:00]} e6 {[%emt 0:00:00]} 7. Qd2 {[%emt 0:00:00]} a6 {[%emt 0:00:00]} 8. O-O-O {[%emt 0:00:00]} Bd7 {[%emt 0:00:00]} 9. f4 {[%emt 0:00:00]} Be7 {[%emt 0:00:00]} 10. Nf3 {[%emt 0:00:00]} b5 {[%emt 0:00:00]} 11. Bxf6 {[%emt 0:00:00]} gxf6 {[%emt 0:00:00]} 12. Kb1 {[%emt 0:02:30]} h5 {[%emt 0:00:00]} 13. f5 {[%emt 0:12:36]} b4 {[%emt 0:00:43]} 14. fxe6 {[%emt 0:04:42]} fxe6 {[%emt 0:00:11]} 15. Ne2 {[%emt 0:00:00]} Qb6 {[%emt 0:05:06]} 16. Nf4 {[%emt 0:07:41]} Kf7 {[%emt 0:03:44]} 17. g3 {[%emt 0:11:37]} Qc5 {[%emt 0:09:41]} 18. Bh3 {[%emt 0:03:55]} a5 {[%emt 0:07:33]} 19. Rhf1 {[%emt 0:02:04]} Ne5 {[%emt 0:02:34]} 20. Ng5+ 1-0

[Event "Klatov Bazar Besiny Cup 2018"]
[Site "Klatovy"]
[Date "2018.07.05"]
[Round "6"]
[White "Formanek, Martin"]
[Black "Soural, Jan"]
[Result "1/2-1/2"]
[ECO "C10"]
[WhiteElo "2267"]
[BlackElo "2192"]
[Annotator "NA"]
[PlyCount "27"]
[EventDate "2018.07.01"]
[EventType "swiss"]
[EventCountry "CZE"]
[SourceTitle "playchess.com"]
[Source "ChessBase"]
[SourceQuality "1"]
[TimeControl "40/7200:0"]

1. e4 {[%emt 0:00:00]} e6 {[%emt 0:00:00]} 2. d4 {[%emt 0:00:00]} d5 {[%emt 0:00:00]} 3. Nc3 {[%emt 0:00:25]} dxe4 {[%emt 0:00:00]} 4. Nxe4 {[%emt 0:00:00]} Nd7 {[%emt 0:00:00]} 5. Nf3 {[%emt 0:01:09]} Ngf6 {[%emt 0:00:00]} 6. Nxf6+ {[%emt 0:01:03]} Nxf6 {[%emt 0:00:00]} 7. Be2 {[%emt 0:00:01]} c5 {[%emt 0:00:00]} 8. O-O {[%emt 0:00:16]} cxd4 {[%emt 0:04:39]} 9. Nxd4 {[%emt 0:01:21]} Bc5 {[%emt 0:04:14]} 10. Nb3 {[%emt 0:03:03]} Bd6 {[%emt 0:17:16]} 11. Bf3 {[%emt 0:09:46]} Qc7 {[%emt 0:15:04]} 12. g3 {[%emt 0:01:28]} O-O {[%emt 0:05:05]} 13. c4 {[%emt 0:01:45]} Bd7 {[%emt 0:23:07]} 14. c5 {[%emt 0:19:10]} 1/2-1/2

[Event "Klatov Bazar Besiny Cup 2018"]
[Site "Klatovy"]
[Date "2018.07.05"]
[Round "6"]
[White "Simet, Martin"]
[Black "Jelinek, Michal"]
[Result "1-0"]
[ECO "C84"]
[WhiteElo "2182"]
[BlackElo "2204"]
[Annotator "ChessBase"]
[PlyCount "127"]
[EventDate "2018.07.01"]
[EventType "swiss"]
[EventCountry "CZE"]
[SourceTitle "playchess.com"]
[Source "ChessBase"]
[SourceQuality "1"]
[TimeControl "40/7200:0"]

1. e4 {[%emt 0:00:00]} e5 {[%emt 0:00:59]} 2. Nf3 {[%emt 0:00:00]} Nc6 {[%emt 0:00:01]} 3. Bb5 {[%emt 0:00:00]} a6 {[%emt 0:00:00]} 4. Ba4 {[%emt 0:00:00]} Nf6 {[%emt 0:00:00]} 5. O-O {[%emt 0:00:00]} Be7 {[%emt 0:00:00]} 6. d3 {[%emt 0:00:00]} b5 {[%emt 0:01:56]} 7. Bb3 {[%emt 0:00:00]} d6 {[%emt 0:00:08]} 8. a3 {[%emt 0:02:19]} Na5 {[%emt 0:00:24]} 9. Ba2 {[%emt 0:00:00]} c5 {[%emt 0:00:09]} 10. Nc3 {[%emt 0:10:53]} Be6 {[%emt 0:00:19]} 11. Bg5 {[%emt 0:06:16]} O-O {[%emt 0:06:40]} 12. Qd2 {[%emt 0:07:14]} Nc6 {[%emt 0:09:44]} 13. Bxf6 {[%emt 0:33:35]} Bxf6 {[%emt 0:00:00]} 14. Nd5 {[%emt 0:00:00]} a5 {[%emt 0:11:23]} 15. c3 {[%emt 0:03:26]} b4 {[%emt 0:02:53]} 16. Bc4 {[%emt 0:03:50]} Rb8 {[%emt 0:09:37]} 17. axb4 {[%emt 0:02:37]} axb4 {[%emt 0:02:53]} 18. Ra6 {[%emt 0:03:14]} Bxd5 {[%emt 0:00:42]} 19. Bxd5 {[%emt 0:00:00]} Ne7 {[%emt 0:00:25]} 20. c4 {[%emt 0:00:00]} g6 {[%emt 0:17:17]} 21. Qc2 {[%emt 0:01:27]} Bg7 {[%emt 0:13:16]} 22. Qa4 {[%emt 0:00:53]} Bh6 {[%emt 0:04:19]} 23. Ra1 {[%emt 0:06:38]} Nc8 {[%emt 0:01:02]} 24. Qc6 {[%emt 0:05:10]} b3 {[%emt 0:04:17]} 25. h4 {[%emt 0:03:52]} Qe7 {[%emt 0:06:20]} 26. R1a5 {[%emt 0:06:20]} Bc1 {[%emt 0:01:42]} 27. Qa4 {[%emt 0:01:13]} Bxb2 {[%emt 0:09:06]} 28. Rb5 {[%emt 0:00:00]} Rxb5 {[%emt 0:01:25]} 29. cxb5 {[%emt 0:00:00]} Bd4 {[%emt 0:01:09]} 30. Qxb3 {[%emt 0:00:00]} c4 {[%emt 0:00:56]} 31. Bxc4 {[%emt 0:00:00]} Bb6 {[%emt 0:01:30]} 32. Qa2 {[%emt 0:04:36]} Kg7 {[%emt 0:01:17]} 33. Ra8 {[%emt 0:00:05]} h6 {[%emt 0:00:21]} 34. Bd5 {[%emt 0:02:51]} g5 {[%emt 0:00:26]} 35. g3 {[%emt 0:02:52]} g4 {[%emt 0:01:51]} 36. Nh2 {[%emt 0:00:31]} h5 {[%emt 0:00:00]} 37. Nf1 {[%emt 0:02:26]} Qf6 {[%emt 0:01:52]} 38. Qe2 {[%emt 0:01:38]} Ne7 {[%emt 0:00:53]} 39. Rxf8 {[%emt 0:00:00]} Kxf8 {[%emt 0:00:00]} 40. Bc4 {[%emt 0:00:00]} Ng6 {[%emt 0:00:01]} 41. Ne3 {[%emt 1:59:14]} Ne7 {[%emt 2:00:35]} 42. Kg2 {[%emt 0:00:00]} Qh6 {[%emt 0:00:44]} 43. Nf1 {[%emt 0:03:13]} Kg7 {[%emt 0:00:09]} 44. Nd2 {[%emt 0:00:00]} Ba5 {[%emt 0:00:07]} 45. Nf1 {[%emt 0:00:00]} Bb6 {[%emt 0:00:00]} 46. Ne3 {[%emt 0:01:07]} Kf8 {[%emt 0:00:00]} 47. Bb3 {[%emt 0:00:14]} Bc5 {[%emt 0:00:00]} 48. Nc4 {[%emt 0:00:00]} Nc8 {[%emt 0:00:13]} 49. Qd2 {[%emt 0:00:11]} Qf6 {[%emt 0:00:00]} 50. Bd1 {[%emt 0:00:00]} Kg7 {[%emt 0:00:25]} 51. f3 {[%emt 0:00:00]} Qg6 {[%emt 0:00:01]} 52. fxg4 {[%emt 0:00:00]} hxg4 {[%emt 0:00:00]} 53. Ne3 {[%emt 0:00:00]} Nb6 {[%emt 0:00:02]} 54. Nxg4 {[%emt 0:00:00]} f5 {[%emt 0:00:00]} 55. exf5 {[%emt 0:00:00]} Qxf5 {[%emt 0:00:00]} 56. Bf3 {[%emt 0:00:00]} d5 {[%emt 0:00:00]} 57. Qh6+ {[%emt 0:00:00]} Kf7 {[%emt 0:00:00]} 58. Qh8 {[%emt 0:00:33]} Ke6 {[%emt 0:00:00]} 59. Qh6+ {[%emt 0:00:00]} Kf7 {[%emt 0:00:00]} 60. Qh8 {[%emt 0:00:23]} Ke6 {[%emt 0:00:00]} 61. Qe8+ {[%emt 0:00:00]} Be7 {[%emt 0:00:00]} 62. Qc6+ {[%emt 0:00:00]} Bd6 {[%emt 0:00:00]} 63. Bxd5+ {[%emt 0:00:00]} Ke7 {[%emt 0:00:00]} 64. Ne3 {[%emt 0:00:00]} 1-0

[Event "Klatov Bazar Besiny Cup 2018"]
[Site "Klatovy"]
[Date "2018.07.05"]
[Round "6"]
[White "Kozak, Milos"]
[Black "Jurek, Josef"]
[Result "1/2-1/2"]
[ECO "A16"]
[WhiteElo "2156"]
[BlackElo "2277"]
[Annotator "NA"]
[PlyCount "45"]
[EventDate "2018.07.01"]
[EventType "swiss"]
[EventCountry "CZE"]
[SourceTitle "playchess.com"]
[Source "ChessBase"]
[SourceQuality "1"]
[TimeControl "40/7200:0"]

1. c4 Nf6 {[%emt 0:00:00]} 2. Nc3 {[%emt 0:00:00]} c5 {[%emt 0:00:00]} 3. Nf3 {[%emt 0:00:00]} b6 {[%emt 0:00:08]} 4. g3 {[%emt 0:00:00]} Bb7 {[%emt 0:00:00]} 5. Bg2 {[%emt 0:00:00]} g6 {[%emt 0:00:42]} 6. O-O {[%emt 0:00:00]} Bg7 {[%emt 0:00:00]} 7. d4 {[%emt 0:00:31]} cxd4 {[%emt 0:00:00]} 8. Qxd4 {[%emt 0:00:40]} d6 {[%emt 0:00:00]} 9. Rd1 {[%emt 0:04:07]} Nbd7 {[%emt 0:00:00]} 10. b3 {[%emt 0:07:09]} Rc8 {[%emt 0:09:51]} 11. Bb2 {[%emt 0:04:16]} O-O {[%emt 0:00:38]} 12. Qd2 {[%emt 0:06:30]} a6 {[%emt 0:02:10]} 13. Nd4 {[%emt 0:01:31]} Bxg2 {[%emt 0:02:43]} 14. Kxg2 {[%emt 0:00:00]} Qc7 {[%emt 0:00:02]} 15. e4 {[%emt 0:03:34]} Qb7 {[%emt 0:01:39]} 16. f3 {[%emt 0:08:28]} Rfd8 {[%emt 0:03:44]} 17. Nd5 {[%emt 0:05:22]} Kf8 {[%emt 0:03:34]} 18. Ne2 {[%emt 0:05:24]} e6 {[%emt 0:07:49]} 19. Nxf6 {[%emt 0:01:38]} Nxf6 {[%emt 0:00:00]} 20. Qf4 {[%emt 0:16:35]} Qe7 {[%emt 0:06:41]} 21. Rd2 {[%emt 0:04:14]} Ne8 {[%emt 0:06:21]} 22. Bxg7+ {[%emt 0:00:20]} Kxg7 {[%emt 0:00:05]} 23. Rad1 {[%emt 0:04:15]} 1/2-1/2

[Event "Klatov Bazar Besiny Cup 2018"]
[Site "Klatovy"]
[Date "2018.07.06"]
[Round "7"]
[White "Krzyzanowski, Marcin"]
[Black "Neuman, Petr"]
[Result "1-0"]
[ECO "C65"]
[WhiteElo "2473"]
[BlackElo "2432"]
[Annotator "ChessBase"]
[PlyCount "107"]
[EventDate "2018.07.01"]
[EventType "swiss"]
[EventCountry "CZE"]
[SourceTitle "playchess.com"]
[Source "ChessBase"]
[SourceQuality "1"]
[TimeControl "40/7200:0"]

1. e4 {[%emt 0:00:00]} e5 {[%emt 0:00:00]} 2. Nf3 {[%emt 0:00:00]} Nc6 {[%emt 0:00:00]} 3. Bb5 {[%emt 0:00:00]} Nf6 {[%emt 0:00:00]} 4. d3 {[%emt 0:00:00]} d6 {[%emt 0:00:41]} 5. c3 {[%emt 0:02:41]} Bd7 {[%emt 0:01:31]} 6. Nbd2 {[%emt 0:03:47]} g6 {[%emt 0:01:06]} 7. O-O {[%emt 0:00:52]} Bg7 {[%emt 0:00:00]} 8. Re1 {[%emt 0:00:48]} O-O {[%emt 0:00:00]} 9. Nf1 {[%emt 0:01:37]} Re8 {[%emt 0:13:34]} 10. a4 {[%emt 0:04:29]} a6 {[%emt 0:09:42]} 11. Bc4 {[%emt 0:01:58]} Be6 {[%emt 0:00:00]} 12. Bxe6 {[%emt 0:05:56]} Rxe6 {[%emt 0:00:00]} 13. Ne3 {[%emt 0:11:07]} Re8 {[%emt 0:09:50]} 14. Qb3 {[%emt 0:02:45]} Qd7 {[%emt 0:07:37]} 15. h3 {[%emt 0:00:19]} Rab8 {[%emt 0:18:56]} 16. Bd2 {[%emt 0:05:20]} Nd8 {[%emt 0:01:23]} 17. Nd5 {[%emt 0:02:23]} Ne6 {[%emt 0:00:59]} 18. Nxf6+ {[%emt 0:03:18]} Bxf6 {[%emt 0:00:40]} 19. Be3 {[%emt 0:00:00]} c6 {[%emt 0:01:21]} 20. d4 {[%emt 0:00:31]} exd4 {[%emt 0:00:00]} 21. cxd4 {[%emt 0:00:00]} d5 {[%emt 0:00:00]} 22. e5 {[%emt 0:01:09]} Bg7 {[%emt 0:00:00]} 23. Rad1 {[%emt 0:06:13]} f6 {[%emt 0:00:35]} 24. exf6 {[%emt 0:00:20]} Bxf6 {[%emt 0:00:00]} 25. Qd3 {[%emt 0:00:19]} Ng7 {[%emt 0:02:51]} 26. Nh2 {[%emt 0:08:30]} Nf5 {[%emt 0:03:13]} 27. Ng4 {[%emt 0:06:03]} Bg7 {[%emt 0:00:00]} 28. Bf4 {[%emt 0:00:25]} Rxe1+ {[%emt 0:00:00]} 29. Rxe1 {[%emt 0:00:00]} Re8 {[%emt 0:00:00]} 30. Ne5 {[%emt 0:02:53]} Qe7 {[%emt 0:00:00]} 31. Nf3 {[%emt 0:01:37]} Qf8 {[%emt 0:00:00]} 32. Rxe8 {[%emt 0:03:46]} Qxe8 {[%emt 0:00:00]} 33. Be5 {[%emt 0:01:00]} Qe7 {[%emt 0:06:46]} 34. g4 {[%emt 0:05:02]} Nh4 {[%emt 0:05:07]} 35. Nxh4 {[%emt 0:05:59]} Qxh4 {[%emt 0:00:00]} 36. Bxg7 {[%emt 0:04:21]} Kxg7 {[%emt 0:00:32]} 37. Qe3 {[%emt 0:00:00]} a5 {[%emt 0:14:46]} 38. Qe5+ {[%emt 0:03:28]} Qf6 {[%emt 0:00:38]} 39. Qc7+ {[%emt 0:01:20]} Kh6 {[%emt 0:00:00]} 40. Qxb7 {[%emt 0:01:08]} Qf3 {[%emt 0:05:13]} 41. Qxc6 {[%emt 2:01:59]} Qxh3 {[%emt 1:59:33]} 42. Qc1+ {[%emt 0:00:29]} Kg7 {[%emt 0:00:52]} 43. Qc7+ {[%emt 0:00:00]} Kf8 {[%emt 0:01:12]} 44. Qd8+ {[%emt 0:01:44]} Kg7 {[%emt 0:00:00]} 45. Qd7+ {[%emt 0:01:31]} Kf8 {[%emt 0:00:00]} 46. Qd6+ {[%emt 0:00:32]} Kg7 {[%emt 0:00:00]} 47. Qe5+ {[%emt 0:00:00]} Kh6 {[%emt 0:00:00]} 48. Qh2 {[%emt 0:06:50]} Qxh2+ {[%emt 0:00:00]} 49. Kxh2 {[%emt 0:00:00]} Kg5 {[%emt 0:00:14]} 50. Kg3 {[%emt 0:00:00]} h6 {[%emt 0:00:00]} 51. f4+ {[%emt 0:00:54]} Kf6 {[%emt 0:00:00]} 52. Kh4 {[%emt 0:00:00]} Ke6 {[%emt 0:00:03]} 53. f5+ {[%emt 0:01:34]} gxf5 {[%emt 0:01:20]} 54. g5 {[%emt 0:00:00]} 1-0